bitfinex/quotes_ETHUSD_20251108
["timestamp","ask_amount","ask_price","bid_price","bid_amount"]
[1762611525812,1.259712,3381.5,3380.6,1e-08]
[1762611526000,2.95793962,3380.8,3380.6,1e-08]
[1762611526202,2.95796728,3380.7,3380.6,1e-08]
[1762611527002,3.45626728,3380.7,3380.6,1e-08]
[1762611527209,3.95516728,3380.7,3380.6,1e-08]
[1762611527618,3.45626728,3380.7,3380.6,1e-08]
[1762611528395,4.59658023,3380.7,3380.6,1e-08]
[1762611528601,0.64141295,3380.7,3380.6,1e-08]
[1762611528909,3.45626728,3380.7,3380.6,1e-08]
[1762611529109,3.94586728,3380.7,3380.6,1e-08]
[1762611529288,3.45626728,3380.7,3380.6,1e-08]
[1762611529831,2.95796728,3380.7,3380.6,1e-08]
[1762611530036,3.91596728,3380.7,3380.6,1e-08]
[1762611530326,3.64534324,3380.7,3380.6,1e-08]
[1762611530555,3.42898259,3381.4,3380.6,0.19230001]
[1762611530839,2.9577923,3380.9,3380.8,0.1923]
[1762611531396,1.259712,3381.3,3380.6,1e-08]
[1762611531596,2.95796728,3380.7,3380.6,1e-08]
[1762611532039,2.95786274,3380.9,3380.6,0.19230001]
[1762611532340,2.95788694,3380.8,3380.6,0.19230001]
[1762611532952,0.1472,3381.0,3380.7,0.1923]
[1762611533307,2.95787979,3380.8,3380.6,1e-08]
[1762611533493,2.95788771,3380.8,3380.6,1e-08]
[1762611533837,2.95775772,3381.0,3380.7,0.1923]
[1762611533993,2.95787979,3380.8,3380.7,0.3395]
[1762611534197,2.95796728,3380.7,3380.6,1e-08]
[1762611534398,3.54955199,3380.7,3380.6,1e-08]
[1762611534818,4.01795199,3380.7,3380.6,1e-08]
[1762611535108,4.50755199,3380.7,3380.6,1e-08]
[1762611536922,5.76726399,3380.7,3380.6,1e-08]
[1762611537235,6.2649491,3380.7,3380.6,1e-08]
[1762611537436,5.76726399,3380.7,3380.6,1e-08]
[1762611537857,5.09167078,3380.6,3380.5,1e-08]
[1762611538016,6.50018337,3380.6,3380.5,1e-08]
[1762611538603,5.09202082,3380.2,3380.1,1e-08]
[1762611538798,2.95840482,3380.2,3380.1,1e-08]
[1762611539397,2.95838596,3380.3,3380.1,1e-08]
[1762611539637,0.4896,3380.6,3380.1,1e-08]
[1762611539638,2.95840482,3380.2,3380.1,1e-08]
[1762611540030,2.95840482,3380.2,3380.1,0.19230001]
[1762611540227,2.95840482,3380.2,3380.1,1e-08]
[1762611540428,4.50807628,3380.2,3380.1,1e-08]
[1762611540630,3.55007628,3380.2,3380.1,1e-08]
[1762611540837,3.55007628,3380.2,3380.1,0.00100001]
[1762611541145,2.95840482,3380.2,3380.1,0.00100001]
[1762611541730,3.89820482,3380.2,3380.1,0.00100001]
[1762611543228,0.4785,3380.2,3380.1,0.00100001]
[1762611543452,3.43690482,3380.2,3380.1,0.00100001]
[1762611543646,3.89820482,3380.2,3380.1,0.00100001]
[1762611543832,4.6302607,3380.2,3380.1,0.00100001]
[1762611544025,4.1689607,3380.2,3380.1,0.00100001]
[1762611544754,4.66664581,3380.2,3380.1,0.00100001]
[1762611544954,5.12794581,3380.2,3380.1,0.00100001]
[1762611545671,6.79316181,3380.2,3380.1,0.00100001]
[1762611545825,6.94036181,3380.2,3380.1,0.00100001]
[1762611546161,6.94036181,3380.2,3379.1,0.005]
[1762611546162,2.9592803,3379.2,3379.1,0.005]
[1762611546360,4.10826541,3379.2,3379.1,0.005]
[1762611546558,4.0718803,3379.2,3379.1,0.005]
[1762611547458,2.95919821,3379.3,3379.1,0.005]
[1762611547665,0.1849,3379.5,3379.1,0.005]
[1762611547865,0.1849,3379.5,3378.4,0.1483]
[1762611548164,0.6462,3379.8,3378.0,0.1933]
[1762611548355,2.95938931,3379.1,3378.1,3.06088029]
[1762611548548,1.69087158,3380.1,3378.1,0.10068911]
[1762611548750,0.4613,3380.0,3379.0,0.1483]
[1762611549061,2.95918537,3379.4,3379.0,0.1483]
[1762611549282,0.4613,3379.9,3379.0,0.1483]
[1762611549517,0.6462,3380.2,3379.3,0.1483]
[1762611549785,2.95876743,3379.8,3379.3,0.1483]
[1762611549975,2.95876743,3379.8,3379.3,0.45906397]
[1762611550282,0.1849,3380.2,3379.7,0.1483]
[1762611550283,2.95869546,3379.9,3379.7,0.1483]
[1762611550582,2.95859204,3380.0,3379.7,0.1483]
[1762611550760,2.95859204,3380.0,3379.3,3.41825032]
[1762611550761,2.95884545,3379.7,3379.3,0.45906397]
[1762611550962,2.95849894,3380.1,3379.3,0.45906397]
[1762611551194,0.1849,3380.5,3379.6,0.1483]
[1762611551363,1.259712,3380.8,3379.6,2.9589248]
[1762611551364,0.6462,3380.7,3379.6,2.9589248]
[1762611551685,0.6462,3380.7,3379.6,0.1483]
[1762611551686,2.95855013,3380.1,3379.6,0.1483]
[1762611551885,0.1849,3380.7,3378.8,2.95959536]
[1762611552089,0.4613,3380.6,3378.5,0.1483]
[1762611552297,2.95865144,3380.0,3379.2,2.95927994]
[1762611552496,2.95868842,3379.9,3379.2,2.95927994]
[1762611552802,0.4613,3380.5,3378.9,0.1483]
[1762611553087,0.4613,3380.5,3379.3,2.95916029]
[1762611553272,2.95884348,3379.7,3378.9,0.1483]
[1762611553464,2.9590699,3379.5,3378.9,0.1483]
[1762611553869,0.4613,3380.2,3378.9,0.1483]
[1762611554070,2.95909737,3379.5,3378.9,0.1483]
[1762611554274,2.95909737,3379.5,3378.5,2.95981852]
[1762611554475,2.95925827,3379.3,3378.6,3.2557244]
[1762611554688,2.95885559,3379.7,3378.6,0.44428185]
[1762611554853,2.95906865,3379.5,3378.8,2.95963014]
[1762611555059,2.9594144,3379.1,3378.6,0.29598185]
[1762611555284,3.42024058,3379.6,3378.3,0.1483]
[1762611555285,2.95914923,3379.4,3378.3,0.1483]
[1762611555489,1.259712,3380.0,3378.5,0.1472]
[1762611555490,0.1472,3379.1,3378.5,0.1472]
[1762611555652,0.1472,3379.4,3378.8,0.1472]
[1762611555852,0.1472,3379.4,3379.0,0.1483]
[1762611556282,2.95919273,3379.3,3379.0,0.1483]
[1762611556667,0.1472,3379.4,3379.2,0.1483]
[1762611556863,0.1472,3379.4,3378.8,3.10680258]
[1762611557179,2.95916896,3379.4,3378.6,2.95974116]
[1762611557380,0.4613,3379.7,3378.6,0.1483]
[1762611557597,0.4613,3380.0,3378.8,2.95963063]
[1762611557995,0.4613,3380.0,3378.7,0.1483]
[1762611558172,2.95935792,3379.2,3378.7,0.1483]
[1762611558506,2.95916885,3379.4,3378.8,2.95956208]
[1762611558507,2.95912816,3379.4,3378.8,2.95956208]
[1762611558706,0.4613,3380.0,3379.1,0.1483]
[1762611558906,2.95925517,3379.3,3379.1,0.1483]
[1762611559104,2.95866741,3379.9,3378.7,3.10798187]
[1762611559291,2.9588425,3379.7,3378.1,0.24898911]
[1762611559478,2.9590176,3379.5,3378.1,0.58925108]
[1762611559684,2.95966132,3378.8,3378.2,0.1483]
[1762611560177,0.1849,3379.2,3378.1,0.24898911]
[1762611560413,2.95962708,3378.9,3378.2,2.96010202]
[1762611560704,2.9596098,3378.9,3378.4,0.001]
[1762611560885,2.95965567,3378.8,3378.4,0.001]
[1762611561084,2.95972829,3378.7,3378.4,0.001]
[1762611561411,2.95981895,3378.6,3378.4,0.001]
[1762611561772,3.60553723,3379.2,3378.4,0.001]
[1762611561773,0.1849,3379.2,3378.4,0.001]
[1762611561971,2.95954575,3378.9,3378.4,0.001]
[1762611562271,2.95966273,3378.8,3378.4,0.001]
[1762611562472,0.6565044,3378.9,3378.4,0.001]
[1762611562690,2.95983867,3378.6,3378.4,0.001]
[1762611563416,2.95989344,3378.5,3378.4,0.001]
[1762611563707,2.95973971,3378.7,3378.4,0.001]
[1762611563903,2.95963534,3378.8,3378.4,0.001]
[1762611564118,0.34209353,3378.8,3378.4,0.001]
[1762611564313,2.95978382,3378.7,3378.4,0.001]
[1762611564478,2.9596485,3378.8,3378.4,0.001]
[1762611564673,0.4613,3379.1,3378.4,0.001]
[1762611564891,0.46421911,3379.2,3378.5,2.95987113]
[1762611565096,2.9593112,3379.2,3378.6,2.9597809]
[1762611565317,0.6462,3379.5,3378.6,2.95978835]
[1762611565481,0.6462,3379.5,3378.6,0.60690613]
[1762611565827,0.1849,3380.0,3378.4,0.001]
[1762611565976,0.1849,3380.0,3379.0,2.95940012]
[1762611566515,0.1849,3380.0,3379.0,0.02959455]
[1762611566715,0.002,3380.2,3379.3,2.95911207]
[1762611566916,0.002,3380.2,3379.4,0.31370057]
[1762611567085,0.002,3380.2,3379.1,0.1483]
[1762611567086,2.95864018,3380.0,3379.5,0.1472]
[1762611567286,2.95870107,3379.9,3379.5,0.1472]
[1762611567816,0.1472,3380.1,3379.5,0.1472]
[1762611568018,3.10574605,3380.1,3379.8,0.1483]
[1762611568221,2.95860633,3380.0,3379.8,0.1483]
[1762611568386,2.95860633,3380.0,3379.5,0.1472]
[1762611568387,2.95867302,3379.9,3379.5,0.1472]
[1762611568922,0.1472,3380.1,3379.5,0.1472]
[1762611569126,2.95865995,3380.0,3379.5,0.1472]
[1762611569318,0.1472,3380.1,3379.5,0.1472]
[1762611569627,0.4785,3379.6,3379.5,0.1472]
[1762611569921,2.95910516,3379.4,3378.8,0.1472]
[1762611570111,2.95936509,3379.2,3378.8,0.1472]
[1762611570305,2.95938013,3379.1,3378.8,0.1472]
[1762611570506,0.4613,3379.5,3378.4,0.001]
[1762611570685,0.1472,3379.2,3378.6,7.46906355]
[1762611570885,0.1472,3379.2,3378.9,2.95949189]
[1762611571099,0.1472,3379.2,3379.1,0.1483]
[1762611571881,0.1472,3379.2,3378.6,7.32076355]
[1762611572088,3.10651524,3379.2,3378.6,10.28051698]
[1762611572282,3.10651524,3379.2,3378.6,7.32076355]
[1762611572283,3.10654173,3379.2,3378.6,7.32076355]
[1762611572484,0.1472,3379.2,3378.6,3.10700325]
[1762611572687,0.1472,3379.2,3378.6,0.2955]
[1762611572910,0.1472,3379.2,3378.6,3.10699003]
[1762611573221,0.1472,3379.2,3378.6,3.10697359]
[1762611573724,3.1064859,3379.2,3378.6,3.10696859]
[1762611574098,0.1472,3379.2,3378.6,0.1472]
[1762611574419,0.1472,3379.2,3378.4,0.001]
[1762611574420,0.1472,3378.9,3378.4,2.96096079]
[1762611574628,0.1472,3378.9,3378.5,2.95983632]
[1762611574791,0.1472,3378.9,3378.4,2.9609501]
[1762611574991,0.1472,3378.9,3378.4,0.001]
[1762611575237,0.75380513,3378.9,3378.4,0.001]
[1762611575460,2.95897663,3379.6,3378.4,0.001]
[1762611575461,3.45259344,3378.5,3378.4,0.001]
[1762611575926,3.91009344,3378.5,3378.4,0.001]
[1762611577020,0.9502,3378.5,3378.4,0.001]
[1762611577437,3.91009344,3378.5,3378.4,0.001]
[1762611577732,0.4927,3378.5,3378.4,0.001]
[1762611577937,0.46425028,3378.8,3378.4,0.001]
[1762611578242,2.95954977,3378.9,3378.4,0.001]
[1762611578534,2.95989344,3378.5,3378.4,0.001]
[1762611578708,0.4575,3378.8,3378.4,0.001]
[1762611578901,0.4575,3379.2,3378.4,0.001]
[1762611579248,2.95936787,3379.1,3378.4,0.001]
[1762611579440,0.4575,3379.2,3378.4,0.001]
[1762611579606,0.4575,3379.1,3378.4,0.001]
[1762611579804,0.34168138,3379.0,3378.4,0.001]
[1762611580206,2.95976717,3378.7,3378.4,0.001]
[1762611580387,0.34168138,3379.0,3378.4,0.001]
[1762611580590,3.30116041,3379.0,3378.4,0.001]
[1762611580833,0.6424,3379.8,3378.9,0.1483]
[1762611581134,2.95925722,3379.3,3378.7,2.95969455]
[1762611581288,2.95909165,3379.5,3378.8,2.95957701]
[1762611581494,2.95916247,3379.4,3378.7,2.95965415]
[1762611581805,0.4575,3379.6,3378.4,0.001]
[1762611582019,2.95945395,3379.1,3378.4,2.9609576]
[1762611582192,2.95946621,3379.0,3378.4,0.001]
[1762611582392,2.95946621,3379.0,3378.4,2.96096378]
[1762611582393,2.95950513,3379.0,3378.4,2.96096378]
[1762611582804,0.4641851,3379.7,3378.4,0.001]
[1762611583022,2.95893939,3379.6,3378.9,2.95948245]
[1762611583223,0.65600717,3379.6,3378.5,0.1483]
[1762611583436,2.95917776,3379.4,3378.8,2.95962865]
[1762611583749,2.95919489,3379.3,3378.7,2.95968526]
[1762611583946,2.95919489,3379.3,3378.5,0.1483]
[1762611584457,2.95915785,3379.4,3378.8,2.95960791]
[1762611584747,2.959208,3379.3,3378.5,0.1483]
[1762611585258,3.106408,3379.3,3378.7,0.1472]
[1762611585442,3.106408,3379.3,3378.7,3.10686392]
[1762611585840,0.1472,3379.3,3378.7,0.1472]
[1762611586025,0.1472,3379.3,3378.8,2.95955705]
[1762611586551,0.1472,3379.3,3378.7,0.1472]
[1762611586711,0.1472,3379.3,3378.8,2.95962221]
[1762611586915,0.1472,3379.3,3378.7,0.1472]
[1762611587223,0.1472,3379.3,3379.2,0.1483]
[1762611587554,0.1472,3379.6,3379.2,0.1483]
[1762611587747,2.95886666,3379.7,3379.1,2.95934229]
[1762611587949,1.902012,3379.8,3379.2,2.95926845]
[1762611588157,5.22340237,3379.8,3379.2,2.95926845]
[1762611588448,2.9588959,3379.7,3378.9,2.95952355]
[1762611588640,2.9588959,3379.7,3379.0,2.95945546]
[1762611588836,2.9588959,3379.7,3379.1,2.95934364]
[1762611589053,2.9588959,3379.7,3379.1,2.95934471]
[1762611590056,0.54748633,3379.8,3379.0,0.02959455]
[1762611590225,3.14366658,3379.8,3379.2,2.95922651]
[1762611590431,2.95885821,3379.7,3378.8,0.1483]
[1762611590644,2.9589456,3379.6,3379.0,2.95940883]
[1762611590849,2.9590176,3379.5,3378.5,0.1171]
[1762611591035,2.9590176,3379.5,3378.9,2.95951636]
[1762611591236,3.4164176,3379.5,3378.9,2.95951636]
[1762611591437,3.4164176,3379.5,3379.0,2.95945403]
[1762611591736,3.4164176,3379.5,3378.9,2.95952083]
[1762611591737,3.416449,3379.5,3378.9,2.95952083]
[1762611592136,3.41641862,3379.5,3378.5,1.11633829]
[1762611592338,2.95926438,3379.3,3378.7,2.95967193]
[1762611592549,2.95923896,3379.3,3378.6,2.95973189]
[1762611592767,2.95931705,3379.2,3378.6,2.95980234]
[1762611592973,2.95923819,3379.3,3378.7,2.9597094]
[1762611593174,2.95937013,3379.1,3378.6,2.95979217]
[1762611593348,2.95942288,3379.1,3378.4,0.001]
[1762611593687,2.95943984,3379.1,3378.4,0.001]
[1762611593841,1.13098111,3379.3,3378.4,2.96092909]
[1762611593842,2.9594687,3379.0,3378.4,2.96092909]
[1762611594035,0.67358111,3379.3,3378.4,2.96092909]
[1762611594341,0.4574,3380.1,3379.2,0.1171]
[1762611594543,3.14372765,3379.8,3379.2,0.1171]
[1762611594743,3.14372765,3379.8,3379.2,3.07637519]
[1762611595156,2.95885102,3379.7,3379.2,0.1171]
[1762611595367,0.1849,3379.8,3379.2,3.07636258]
[1762611595872,0.002,3380.2,3379.2,3.07636258]
[1762611595873,2.96043415,3380.2,3379.5,2.95895605]
[1762611596073,2.96041026,3380.2,3379.3,2.95915442]
[1762611596239,2.95857988,3380.0,3379.1,3.07645498]
[1762611596442,2.95867837,3379.9,3379.3,2.95917714]
[1762611596781,0.1812,3379.9,3378.6,0.1171]
[1762611596940,2.95889594,3379.7,3379.0,2.95944867]
[1762611597142,0.4574,3379.8,3378.7,0.73284198]
[1762611597143,2.95895963,3379.6,3378.7,0.73284198]
[1762611597375,2.95895963,3379.6,3379.0,2.95941677]
[1762611597574,2.95910163,3379.5,3378.8,2.95957438]
[1762611597782,3.41650163,3379.5,3379.0,0.1472]
[1762611597961,2.95910163,3379.5,3379.0,0.1472]
[1762611598186,0.4574,3379.4,3379.0,0.1472]
[1762611598606,2.95852322,3380.1,3379.0,0.1472]
[1762611598607,2.958155,3380.5,3379.5,0.1171]
[1762611598914,2.958155,3380.5,3378.8,2.95961553]
[1762611598915,2.9590176,3379.5,3378.4,6.91522686]
[1762611599067,2.95919745,3379.3,3378.4,6.91522686]
[1762611599270,2.95919745,3379.3,3378.5,2.95989344]
[1762611599506,2.95919745,3379.3,3378.6,2.95972867]
[1762611599667,2.95919745,3379.3,3379.0,0.001]
[1762611599872,3.41655619,3379.4,3379.0,0.001]
[1762611600172,0.4574,3379.4,3379.0,0.001]
[1762611600371,0.455,3379.1,3379.0,0.001]
[1762611600570,0.6406,3379.6,3379.0,0.001]
[1762611600774,0.6406,3379.6,3379.1,2.95929514]
[1762611600775,0.1832,3379.6,3379.1,2.95929514]
[1762611601001,0.1832,3379.6,3379.5,0.1171]
[1762611601002,0.002,3379.6,3379.5,0.1171]
[1762611601207,0.002,3379.6,3379.5,3.0761176]
[1762611601431,0.002,3379.6,3379.5,3.69135051]
[1762611602019,0.002,3379.6,3379.5,0.61523291]
[1762611602171,0.002,3379.6,3379.5,3.0761176]
[1762611602722,0.002,3379.6,3379.5,3.1932176]
[1762611603076,0.002,3380.2,3380.1,2.95849235]
[1762611603324,0.002,3380.2,3380.1,0.1171]
[1762611603470,0.002,3380.2,3379.7,2.95876113]
[1762611603670,0.002,3380.2,3380.1,3.07559235]
[1762611604110,0.002,3380.2,3380.1,3.19269235]
[1762611604699,0.002,3380.2,3380.1,3.07559235]
[1762611605017,0.002,3380.2,3380.1,3.19269235]
[1762611605373,0.002,3380.2,3380.1,3.22227727]
[1762611605595,0.002,3380.2,3380.1,4.53296017]
[1762611606912,0.002,3380.2,3380.1,11.44718703]
[1762611608745,0.002,3380.2,3380.1,11.59438703]
[1762611608950,0.002,3380.2,3380.1,8.51879468]
[1762611609231,0.002,3380.2,3380.1,11.47728703]
[1762611609532,0.002,3380.2,3380.1,1.48746782]
[1762611609707,0.002,3380.2,3380.1,0.1472]
[1762611610294,0.4896,3380.2,3380.1,0.1472]
[1762611610498,0.9577,3380.2,3379.0,6.91522686]
[1762611610715,2.95862852,3380.0,3379.0,6.91522686]
[1762611611010,2.95857988,3380.0,3379.0,6.91522686]
[1762611611223,0.6505,3379.9,3379.0,7.61845955]
[1762611611550,2.95881813,3379.8,3379.1,2.95929731]
[1762611611697,0.4681,3379.8,3379.0,7.61845955]
[1762611611899,0.4681,3379.7,3379.0,7.61845955]
[1762611612150,0.4681,3379.7,3379.0,6.91522686]
[1762611612641,0.002,3380.2,3379.7,2.9588425]
[1762611612948,0.002,3380.2,3379.6,3.07596908]
[1762611613231,0.002,3380.2,3379.7,2.9588395]
[1762611613393,0.002,3380.2,3379.9,2.95858516]
[1762611613688,0.002,3380.2,3380.1,3.07559235]
[1762611614574,0.002,3380.2,3380.0,6.91422686]
[1762611614777,0.002,3380.2,3379.9,0.59174213]
[1762611615096,0.002,3380.2,3380.0,2.95852362]
[1762611615246,0.002,3380.2,3379.5,7.03132686]
[1762611615441,0.002,3380.2,3379.9,2.95861527]
[1762611615641,0.002,3380.2,3380.0,2.95857143]
[1762611615845,0.002,3380.2,3380.1,2.95849235]
[1762611616073,0.002,3380.2,3380.1,3.07559235]
[1762611616268,0.002,3380.2,3380.1,2.95849235]
[1762611616485,0.002,3380.2,3380.1,3.48854159]
[1762611616870,0.002,3380.2,3380.1,3.37144159]
[1762611617042,0.002,3380.2,3380.1,0.29584924]
[1762611617243,0.002,3380.2,3380.1,3.37144159]
[1762611617903,0.002,3380.2,3380.1,3.48854159]
[1762611618988,0.002,3380.2,3380.1,3.37144159]
[1762611619518,0.9577,3380.2,3379.8,2.95870684]
[1762611619718,0.9577,3380.2,3379.8,2.95870568]
[1762611620276,0.67,3379.9,3379.1,6.91422686]
[1762611620573,0.67,3379.9,3379.6,2.95891191]
[1762611620784,0.67,3379.9,3379.8,0.1472]
[1762611621877,0.67,3379.9,3379.8,3.10595495]
[1762611622188,0.67,3379.9,3379.8,0.1472]
[1762611623189,0.1824,3379.9,3379.8,3.10595495]
[1762611623591,0.4681,3380.1,3379.8,3.10595495]
[1762611623812,0.4681,3380.1,3379.8,0.1472]
[1762611625007,0.67,3379.9,3379.8,0.1472]
[1762611625190,0.002,3380.2,3379.8,0.1472]
[1762611625393,0.4701,3380.2,3379.8,0.1472]
[1762611625785,0.2201,3380.2,3379.9,2.95864303]
[1762611626037,0.2201,3380.2,3379.8,3.1059353]
[1762611626231,0.1472,3380.5,3379.8,3.1059353]
[1762611626232,0.1472,3380.5,3380.1,2.95846883]
[1762611626526,0.1472,3380.5,3380.1,0.1472]
[1762611627117,0.002,3380.6,3380.5,2.95814228]
[1762611627436,0.002,3380.6,3380.5,3.32324228]
[1762611627782,0.002,3380.6,3380.5,3.68834228]
[1762611629129,0.007,3380.9,3380.8,2.95787979]
[1762611629291,0.002,3381.3,3381.2,2.95752987]
[1762611629504,0.002,3381.3,3381.2,5.71574938]
[1762611629732,0.002,3381.3,3381.2,5.68617409]
[1762611631432,0.002,3383.6,3382.7,0.405504]
[1762611631631,0.2026,3382.9,3381.8,1.259712]
[1762611631795,0.2026,3382.9,3382.7,0.1472]
[1762611632196,0.6983,3382.9,3382.7,0.1472]
[1762611632499,0.2026,3382.9,3382.7,0.1472]
[1762611633862,0.4665,3382.8,3382.7,0.1472]
[1762611634149,3.42263101,3382.8,3382.7,0.1472]
[1762611634436,0.4665,3382.8,3382.7,0.1472]
[1762611634643,0.007,3382.9,3382.7,0.1472]
[1762611634942,0.4665,3382.8,3382.7,0.1472]
[1762611636095,0.2026,3382.9,3382.7,0.1472]
[1762611636519,0.007,3382.9,3382.6,2.9562328]
[1762611636736,0.007,3382.9,3382.7,2.95621785]
[1762611636915,0.007,3382.9,3382.6,3.54755635]
[1762611637117,0.007,3382.9,3382.8,2.95613101]
[1762611637426,0.007,3382.9,3382.7,2.9561897]
[1762611637629,0.007,3382.9,3382.5,2.95632011]
[1762611637926,0.007,3382.9,3382.6,3.54759352]
[1762611638146,0.007,3382.9,3382.6,0.59128881]
[1762611638290,0.002,3382.8,3382.2,0.1483]
[1762611639213,0.002,3382.8,3382.2,3.10495273]
[1762611639562,0.002,3382.8,3382.2,3.10495529]
[1762611639696,0.002,3382.8,3382.4,2.95641864]
[1762611639898,0.002,3382.8,3382.2,3.10495529]
[1762611640227,0.002,3382.8,3382.4,2.9564806]
[1762611640610,0.002,3382.8,3382.7,4.5810304]
[1762611640829,0.002,3382.8,3382.7,4.61059258]
[1762611641031,0.002,3382.8,3382.7,4.9461304]
[1762611642621,0.002,3382.8,3382.7,3.3213184]
[1762611642833,0.002,3382.8,3382.3,0.31049553]
[1762611643001,0.002,3382.8,3382.7,3.3213184]
[1762611643558,0.002,3383.2,3382.7,3.3213184]
[1762611643559,0.002,3383.2,3383.1,3.36137287]
[1762611643759,0.002,3383.2,3383.1,5.09458487]
[1762611644058,0.002,3383.2,3383.1,5.45968487]
[1762611645868,1e-08,3383.5,3383.4,3.72621078]
[1762611646068,0.005,3383.9,3383.8,3.3607614]
[1762611646361,1e-08,3383.9,3383.8,11.89183892]
[1762611646557,0.005,3384.9,3384.3,0.405504]
[1762611646757,0.005,3384.9,3384.2,2.9549081]
[1762611646758,0.005,3384.9,3384.7,3.87227559]
[1762611647258,0.005,3384.9,3384.7,4.23737559]
[1762611647424,0.005,3384.9,3384.7,5.90320472]
[1762611647855,0.005,3384.9,3384.7,7.16291672]
[1762611649761,0.005,3384.9,3384.7,7.01571672]
[1762611652285,0.005,3384.9,3384.7,4.98540072]
[1762611652491,0.005,3384.9,3384.7,3.31957159]
[1762611653065,0.005,3384.9,3384.7,5.34988759]
[1762611653782,0.005,3384.9,3384.7,4.98478759]
[1762611654097,0.005,3384.9,3384.7,4.57928359]
[1762611654402,0.005,3384.9,3384.7,4.94438359]
[1762611654557,0.005,3384.9,3384.7,5.73427868]
[1762611655158,0.005,3384.9,3384.7,5.36917868]
[1762611655494,0.005,3384.9,3384.7,5.73427868]
[1762611655658,0.005,3384.9,3384.7,6.13978268]
[1762611656801,0.005,3384.9,3384.7,5.77468268]
[1762611657166,0.005,3384.9,3384.7,5.36917868]
[1762611657371,0.005,3384.9,3384.7,4.10946668]
[1762611657889,0.005,3384.9,3384.5,1.259712]
[1762611658088,0.005,3384.9,3384.7,2.95447159]
[1762611658471,0.005,3384.9,3384.5,4.21427742]
[1762611658472,0.9771,3384.8,3384.1,1.259712]
[1762611658799,0.9771,3384.8,3384.4,2.95467635]
[1762611658997,0.4293,3384.5,3384.4,2.95467635]
[1762611659203,0.4916,3384.7,3384.4,2.95467635]
[1762611659401,0.4916,3384.7,3384.5,2.95463806]
[1762611659774,0.4916,3384.7,3384.3,2.95477304]
[1762611659775,0.4916,3384.7,3384.6,3.10175888]
[1762611659975,0.002,3384.8,3384.6,3.70740888]
[1762611660305,0.9751,3384.7,3384.6,0.1472]
[1762611660663,3.92963371,3384.7,3383.4,1.30657672]
[1762611660867,0.4293,3384.1,3383.1,0.1084]
[1762611661064,0.4293,3384.1,3384.0,0.1472]
[1762611661886,0.9119,3384.1,3384.0,0.1472]
[1762611662473,0.9119,3384.1,3382.5,3.5598217]
[1762611662474,2.181612,3384.1,3382.5,0.001]
[1762611662793,2.181612,3384.1,3383.4,0.1472]
[1762611662794,2.95530965,3383.8,3383.4,0.1472]
[1762611663170,0.6847,3383.5,3383.4,0.1472]
[1762611663571,1.1673,3383.5,3383.4,0.1472]
[1762611664708,4.12281943,3383.5,3383.2,0.1472]
[1762611665005,4.12281943,3383.5,3382.5,0.001]
[1762611665006,0.6923,3382.7,3382.5,0.001]
[1762611665208,0.4248,3382.6,3382.5,0.001]
[1762611665370,3.8637058,3382.6,3382.5,0.001]
[1762611667031,0.9074,3382.6,3382.5,0.001]
[1762611667216,3.8637058,3382.6,3382.5,0.001]
[1762611667416,0.4248,3382.6,3382.5,0.001]
[1762611667635,0.9074,3382.6,3382.5,0.001]
[1762611668945,0.4248,3382.6,3382.5,0.001]
[1762611669145,0.6754,3383.0,3382.6,2.9563058]
[1762611669334,0.6754,3383.0,3382.5,0.001]
[1762611669335,0.1928,3383.0,3382.5,0.001]
[1762611669536,0.4826,3382.9,3382.6,2.95622088]
[1762611670134,0.1928,3383.0,3382.6,2.95624202]
[1762611670325,0.1928,3383.0,3382.9,2.95604363]
[1762611670512,0.1428,3383.0,3382.5,0.001]
[1762611670707,0.4995,3382.6,3382.5,0.001]
[1762611671120,0.4995,3382.6,3382.5,2.9573932]
[1762611671325,0.4826,3382.9,3382.5,2.9573932]
[1762611671533,0.4826,3382.9,3382.5,0.001]
[1762611672210,0.4995,3382.6,3382.5,0.001]
[1762611672649,0.9821,3382.6,3382.5,0.001]
[1762611673467,0.6254,3383.0,3382.6,2.9563058]
[1762611673669,0.1428,3383.0,3382.6,3.25202788]
[1762611673964,0.1428,3383.0,3382.9,2.95604363]
[1762611674166,0.0928,3383.0,3382.9,2.95604363]
[1762611674548,0.0928,3383.0,3382.6,3.25202648]
[1762611674853,0.5754,3383.0,3382.7,0.32530265]
[1762611675054,0.5754,3383.0,3382.5,0.001]
[1762611675055,0.5754,3383.0,3382.9,0.1472]
[1762611675253,1.0749,3383.0,3382.9,0.1472]
[1762611676173,0.5923,3383.0,3382.9,0.1472]
[1762611676483,0.1928,3383.5,3383.0,2.95595625]
[1762611676666,0.1928,3383.5,3383.2,0.1472]
[1762611677193,0.6754,3383.5,3383.2,3.10298016]
[1762611677474,0.002,3384.0,3383.4,0.6035]
[1762611677641,0.002,3384.0,3383.9,0.1472]
[1762611678076,0.002,3384.0,3383.9,3.10237007]
[1762611678278,0.002,3384.0,3383.9,4.16444098]
[1762611678796,0.002,3384.0,3383.9,4.48234098]
[1762611679373,0.002,3384.0,3383.9,4.51189268]
[1762611679578,0.002,3384.0,3383.9,4.48234098]
[1762611679848,0.002,3384.0,3383.9,4.01724098]
[1762611680081,0.002,3384.0,3383.9,1.06207091]
[1762611680374,0.002,3384.0,3383.9,3.56094098]
[1762611680987,0.002,3384.0,3383.9,4.01724098]
[1762611681405,0.002,3384.0,3383.9,3.56094098]
[1762611682268,0.002,3384.0,3383.9,4.01724098]
[1762611682491,0.5015,3384.0,3383.9,0.60577091]
[1762611682719,0.002,3384.0,3383.9,2.95517007]
[1762611684315,0.5015,3384.0,3383.8,2.9552574]
[1762611684534,0.002,3384.0,3383.9,2.95517007]
[1762611684807,1.1749,3383.9,3382.9,0.4651]
[1762611685020,1.1749,3383.9,3383.8,2.9552574]
[1762611685702,0.6923,3383.9,3383.8,2.9552574]
[1762611686305,0.002,3384.0,3383.9,2.95517007]